Workbook

Sheet Messwerte
D2: Aquarienbezeichnung: | H2: Wohnzimmer | Q2: Korallenfarm.at
Q3: Ihr Spezialist für Nachzuchtkorallen aus Österreich
Q4: 1120 Wien, Stranitzkygasse 5
D5: Beckenvolumen: | H5: 500 | Q5: 0664/3972620
Q6: info@korallenfarm.at
Q7: www.korallenfarm.at
A9: Soll-Werte | B9: 420 | D9: 8 | F9: 1350 | H9: 390 | J9: < 0,1 | L9: <1,0 | N9: Calzium ausgleichen (max 20mg/Tag) | P9: kH ausgleichen (max. 1°kH/Tag)
A10: Datum | B10: Ca | C10: Calzium2 | D10: kH | E10: Karbonathärte | F10: Mg | G10: Magnesium | H10: K | I10: Kalium | J10: PO4 | K10: Phosphat | L10: NO3 | M10: Nitrat | N10: Salz: Calziumchlorid-dihydrat | O10: Balling-flüssigkeit: Calzium | P10: Salz: Natrium-hydrogen-carbonat | Q10: Balling-flüssigkeit: kH
A11: 2017-12-12 | B11: 420 | C11: =IF(Tabelle3[[#This Row],[Ca]]>0,Tabelle3[[#This Row],[Ca]],#N/A) -> 420 | D11: 8 | E11: =IF(Tabelle3[[#This Row],[kH]]>0,Tabelle3[[#This Row],[kH]],#N/A) -> 8 | F11: 1350 | G11: =IF(Tabelle3[[#This Row],[Mg]]>0,Tabelle3[[#This Row],[Mg]],#N/A) -> 1350 | H11: 390 | I11: =IF(Tabelle3[[#This Row],[K]]>0,Tabelle3[[#This Row],[K]],#N/A) -> 390 | J11: 0.01 | K11: =IF(Tabelle3[[#This Row],[PO4]]>0,Tabelle3[[#This Row],[PO4]],#N/A) -> 0.01 | L11: 1 | M11: =IF(Tabelle3[[#This Row],[NO3]]>0,Tabelle3[[#This Row],[NO3]],#N/A) -> 1 | N11: =IF(B11<>"",Volumen*(CaSoll-B11)*CaFaktor,"") -> 0 | O11: =IF(N11<> "",(N11/Balling!$E$15)*1000,"") -> 0 | P11: =IF(B11<>"",Volumen*(kHSoll-D11)*(kHFaktor/1000),"") -> 0 | Q11: =IF(P11<> "",(P11/Balling!$E$17)*1000,"") -> 0
A12: 2018-01-01 | B12: 400 | D12: 7 | F12: 1100 | G12: =IF(Tabelle3[[#This Row],[Mg]]>0,Tabelle3[[#This Row],[Mg]],#N/A) -> 1100 | H12: 370 | I12: =IF(Tabelle3[[#This Row],[K]]>0,Tabelle3[[#This Row],[K]],#N/A) -> 370 | J12: 0.02 | K12: =IF(Tabelle3[[#This Row],[PO4]]>0,Tabelle3[[#This Row],[PO4]],#N/A) -> 0.02 | L12: 1.2 | M12: =IF(Tabelle3[[#This Row],[NO3]]>0,Tabelle3[[#This Row],[NO3]],#N/A) -> 1.2 | N12: =IF(B12<>"",Volumen*(CaSoll-B12)*CaFaktor,"") -> 36.7 | O12: =IF(N12<> "",(N12/Balling!$E$15)*1000,"") -> 498.6413043 | P12: 15.1 | Q12: =IF(P12<> "",(P12/Balling!$E$17)*1000,"") -> 179.7619048
A13: 2018-02-01 | B13: 440 | C13: =IF(Tabelle3[[#This Row],[Ca]]>0,Tabelle3[[#This Row],[Ca]],#N/A) -> 440 | D13: 9 | E13: =IF(Tabelle3[[#This Row],[kH]]>0,Tabelle3[[#This Row],[kH]],#N/A) -> 9 | F13: 1200 | G13: =IF(Tabelle3[[#This Row],[Mg]]>0,Tabelle3[[#This Row],[Mg]],#N/A) -> 1200 | I13: =IF(Tabelle3[[#This Row],[K]]>0,Tabelle3[[#This Row],[K]],#N/A) ->  | K13: =IF(Tabelle3[[#This Row],[PO4]]>0,Tabelle3[[#This Row],[PO4]],#N/A) ->  | M13: =IF(Tabelle3[[#This Row],[NO3]]>0,Tabelle3[[#This Row],[NO3]],#N/A) ->  | N13: -36.7 | O13: =IF(N13<> "",(N13/Balling!$E$15)*1000,"") -> -498.6413043 | P13: -15.1 | Q13: =IF(P13<> "",(P13/Balling!$E$17)*1000,"") -> -179.7619048
C14: =IF(Tabelle3[[#This Row],[Ca]]>0,Tabelle3[[#This Row],[Ca]],#N/A) ->  | E14: =IF(Tabelle3[[#This Row],[kH]]>0,Tabelle3[[#This Row],[kH]],#N/A) ->  | G14: =IF(Tabelle3[[#This Row],[Mg]]>0,Tabelle3[[#This Row],[Mg]],#N/A) ->  | I14: =IF(Tabelle3[[#This Row],[K]]>0,Tabelle3[[#This Row],[K]],#N/A) ->  | K14: =IF(Tabelle3[[#This Row],[PO4]]>0,Tabelle3[[#This Row],[PO4]],#N/A) ->  | M14: =IF(Tabelle3[[#This Row],[NO3]]>0,Tabelle3[[#This Row],[NO3]],#N/A) ->  | O14: =IF(N14<> "",(N14/Balling!$E$15)*1000,"") ->  | Q14: =IF(P14<> "",(P14/Balling!$E$17)*1000,"") -> 
C15: =IF(Tabelle3[[#This Row],[Ca]]>0,Tabelle3[[#This Row],[Ca]],#N/A) ->  | E15: =IF(Tabelle3[[#This Row],[kH]]>0,Tabelle3[[#This Row],[kH]],#N/A) ->  | G15: =IF(Tabelle3[[#This Row],[Mg]]>0,Tabelle3[[#This Row],[Mg]],#N/A) ->  | I15: =IF(Tabelle3[[#This Row],[K]]>0,Tabelle3[[#This Row],[K]],#N/A) ->  | K15: =IF(Tabelle3[[#This Row],[PO4]]>0,Tabelle3[[#This Row],[PO4]],#N/A) ->  | M15: =IF(Tabelle3[[#This Row],[NO3]]>0,Tabelle3[[#This Row],[NO3]],#N/A) ->  | O15: =IF(N15<> "",(N15/Balling!$E$15)*1000,"") ->  | Q15: =IF(P15<> "",(P15/Balling!$E$17)*1000,"") -> 
C16: =IF(Tabelle3[[#This Row],[Ca]]>0,Tabelle3[[#This Row],[Ca]],#N/A) ->  | E16: =IF(Tabelle3[[#This Row],[kH]]>0,Tabelle3[[#This Row],[kH]],#N/A) ->  | G16: =IF(Tabelle3[[#This Row],[Mg]]>0,Tabelle3[[#This Row],[Mg]],#N/A) ->  | I16: =IF(Tabelle3[[#This Row],[K]]>0,Tabelle3[[#This Row],[K]],#N/A) ->  | K16: =IF(Tabelle3[[#This Row],[PO4]]>0,Tabelle3[[#This Row],[PO4]],#N/A) ->  | M16: =IF(Tabelle3[[#This Row],[NO3]]>0,Tabelle3[[#This Row],[NO3]],#N/A) ->  | O16: =IF(N16<> "",(N16/Balling!$E$15)*1000,"") ->  | Q16: =IF(P16<> "",(P16/Balling!$E$17)*1000,"") -> 
C17: =IF(Tabelle3[[#This Row],[Ca]]>0,Tabelle3[[#This Row],[Ca]],#N/A) ->  | E17: =IF(Tabelle3[[#This Row],[kH]]>0,Tabelle3[[#This Row],[kH]],#N/A) ->  | G17: =IF(Tabelle3[[#This Row],[Mg]]>0,Tabelle3[[#This Row],[Mg]],#N/A) ->  | I17: =IF(Tabelle3[[#This Row],[K]]>0,Tabelle3[[#This Row],[K]],#N/A) ->  | K17: =IF(Tabelle3[[#This Row],[PO4]]>0,Tabelle3[[#This Row],[PO4]],#N/A) ->  | M17: =IF(Tabelle3[[#This Row],[NO3]]>0,Tabelle3[[#This Row],[NO3]],#N/A) ->  | O17: =IF(N17<> "",(N17/Balling!$E$15)*1000,"") ->  | Q17: =IF(P17<> "",(P17/Balling!$E$17)*1000,"") -> 
C18: =IF(Tabelle3[[#This Row],[Ca]]>0,Tabelle3[[#This Row],[Ca]],#N/A) ->  | E18: =IF(Tabelle3[[#This Row],[kH]]>0,Tabelle3[[#This Row],[kH]],#N/A) ->  | G18: =IF(Tabelle3[[#This Row],[Mg]]>0,Tabelle3[[#This Row],[Mg]],#N/A) ->  | I18: =IF(Tabelle3[[#This Row],[K]]>0,Tabelle3[[#This Row],[K]],#N/A) ->  | K18: =IF(Tabelle3[[#This Row],[PO4]]>0,Tabelle3[[#This Row],[PO4]],#N/A) ->  | M18: =IF(Tabelle3[[#This Row],[NO3]]>0,Tabelle3[[#This Row],[NO3]],#N/A) ->  | O18: =IF(N18<> "",(N18/Balling!$E$15)*1000,"") ->  | Q18: =IF(P18<> "",(P18/Balling!$E$17)*1000,"") -> 
C19: =IF(Tabelle3[[#This Row],[Ca]]>0,Tabelle3[[#This Row],[Ca]],#N/A) ->  | E19: =IF(Tabelle3[[#This Row],[kH]]>0,Tabelle3[[#This Row],[kH]],#N/A) ->  | G19: =IF(Tabelle3[[#This Row],[Mg]]>0,Tabelle3[[#This Row],[Mg]],#N/A) ->  | I19: =IF(Tabelle3[[#This Row],[K]]>0,Tabelle3[[#This Row],[K]],#N/A) ->  | K19: =IF(Tabelle3[[#This Row],[PO4]]>0,Tabelle3[[#This Row],[PO4]],#N/A) ->  | M19: =IF(Tabelle3[[#This Row],[NO3]]>0,Tabelle3[[#This Row],[NO3]],#N/A) ->  | O19: =IF(N19<> "",(N19/Balling!$E$15)*1000,"") ->  | Q19: =IF(P19<> "",(P19/Balling!$E$17)*1000,"") -> 
C20: =IF(Tabelle3[[#This Row],[Ca]]>0,Tabelle3[[#This Row],[Ca]],#N/A) ->  | E20: =IF(Tabelle3[[#This Row],[kH]]>0,Tabelle3[[#This Row],[kH]],#N/A) ->  | G20: =IF(Tabelle3[[#This Row],[Mg]]>0,Tabelle3[[#This Row],[Mg]],#N/A) ->  | I20: =IF(Tabelle3[[#This Row],[K]]>0,Tabelle3[[#This Row],[K]],#N/A) ->  | K20: =IF(Tabelle3[[#This Row],[PO4]]>0,Tabelle3[[#This Row],[PO4]],#N/A) ->  | M20: =IF(Tabelle3[[#This Row],[NO3]]>0,Tabelle3[[#This Row],[NO3]],#N/A) ->  | O20: =IF(N20<> "",(N20/Balling!$E$15)*1000,"") ->  | Q20: =IF(P20<> "",(P20/Balling!$E$17)*1000,"") -> 
C21: =IF(Tabelle3[[#This Row],[Ca]]>0,Tabelle3[[#This Row],[Ca]],#N/A) ->  | E21: =IF(Tabelle3[[#This Row],[kH]]>0,Tabelle3[[#This Row],[kH]],#N/A) ->  | G21: =IF(Tabelle3[[#This Row],[Mg]]>0,Tabelle3[[#This Row],[Mg]],#N/A) ->  | I21: =IF(Tabelle3[[#This Row],[K]]>0,Tabelle3[[#This Row],[K]],#N/A) ->  | K21: =IF(Tabelle3[[#This Row],[PO4]]>0,Tabelle3[[#This Row],[PO4]],#N/A) ->  | M21: =IF(Tabelle3[[#This Row],[NO3]]>0,Tabelle3[[#This Row],[NO3]],#N/A) ->  | O21: =IF(N21<> "",(N21/Balling!$E$15)*1000,"") ->  | Q21: =IF(P21<> "",(P21/Balling!$E$17)*1000,"") -> 
C22: =IF(Tabelle3[[#This Row],[Ca]]>0,Tabelle3[[#This Row],[Ca]],#N/A) ->  | E22: =IF(Tabelle3[[#This Row],[kH]]>0,Tabelle3[[#This Row],[kH]],#N/A) ->  | G22: =IF(Tabelle3[[#This Row],[Mg]]>0,Tabelle3[[#This Row],[Mg]],#N/A) ->  | I22: =IF(Tabelle3[[#This Row],[K]]>0,Tabelle3[[#This Row],[K]],#N/A) ->  | K22: =IF(Tabelle3[[#This Row],[PO4]]>0,Tabelle3[[#This Row],[PO4]],#N/A) ->  | M22: =IF(Tabelle3[[#This Row],[NO3]]>0,Tabelle3[[#This Row],[NO3]],#N/A) ->  | O22: =IF(N22<> "",(N22/Balling!$E$15)*1000,"") ->  | Q22: =IF(P22<> "",(P22/Balling!$E$17)*1000,"") -> 
C23: =IF(Tabelle3[[#This Row],[Ca]]>0,Tabelle3[[#This Row],[Ca]],#N/A) ->  | E23: =IF(Tabelle3[[#This Row],[kH]]>0,Tabelle3[[#This Row],[kH]],#N/A) ->  | G23: =IF(Tabelle3[[#This Row],[Mg]]>0,Tabelle3[[#This Row],[Mg]],#N/A) ->  | I23: =IF(Tabelle3[[#This Row],[K]]>0,Tabelle3[[#This Row],[K]],#N/A) ->  | K23: =IF(Tabelle3[[#This Row],[PO4]]>0,Tabelle3[[#This Row],[PO4]],#N/A) ->  | M23: =IF(Tabelle3[[#This Row],[NO3]]>0,Tabelle3[[#This Row],[NO3]],#N/A) ->  | O23: =IF(N23<> "",(N23/Balling!$E$15)*1000,"") ->  | Q23: =IF(P23<> "",(P23/Balling!$E$17)*1000,"") -> 
C24: =IF(Tabelle3[[#This Row],[Ca]]>0,Tabelle3[[#This Row],[Ca]],#N/A) ->  | E24: =IF(Tabelle3[[#This Row],[kH]]>0,Tabelle3[[#This Row],[kH]],#N/A) ->  | G24: =IF(Tabelle3[[#This Row],[Mg]]>0,Tabelle3[[#This Row],[Mg]],#N/A) ->  | I24: =IF(Tabelle3[[#This Row],[K]]>0,Tabelle3[[#This Row],[K]],#N/A) ->  | K24: =IF(Tabelle3[[#This Row],[PO4]]>0,Tabelle3[[#This Row],[PO4]],#N/A) ->  | M24: =IF(Tabelle3[[#This Row],[NO3]]>0,Tabelle3[[#This Row],[NO3]],#N/A) ->  | O24: =IF(N24<> "",(N24/Balling!$E$15)*1000,"") ->  | Q24: =IF(P24<> "",(P24/Balling!$E$17)*1000,"") -> 
C25: =IF(Tabelle3[[#This Row],[Ca]]>0,Tabelle3[[#This Row],[Ca]],#N/A) ->  | E25: =IF(Tabelle3[[#This Row],[kH]]>0,Tabelle3[[#This Row],[kH]],#N/A) ->  | G25: =IF(Tabelle3[[#This Row],[Mg]]>0,Tabelle3[[#This Row],[Mg]],#N/A) ->  | I25: =IF(Tabelle3[[#This Row],[K]]>0,Tabelle3[[#This Row],[K]],#N/A) ->  | K25: =IF(Tabelle3[[#This Row],[PO4]]>0,Tabelle3[[#This Row],[PO4]],#N/A) ->  | M25: =IF(Tabelle3[[#This Row],[NO3]]>0,Tabelle3[[#This Row],[NO3]],#N/A) ->  | O25: =IF(N25<> "",(N25/Balling!$E$15)*1000,"") ->  | Q25: =IF(P25<> "",(P25/Balling!$E$17)*1000,"") -> 
C26: =IF(Tabelle3[[#This Row],[Ca]]>0,Tabelle3[[#This Row],[Ca]],#N/A) ->  | E26: =IF(Tabelle3[[#This Row],[kH]]>0,Tabelle3[[#This Row],[kH]],#N/A) ->  | G26: =IF(Tabelle3[[#This Row],[Mg]]>0,Tabelle3[[#This Row],[Mg]],#N/A) ->  | I26: =IF(Tabelle3[[#This Row],[K]]>0,Tabelle3[[#This Row],[K]],#N/A) ->  | K26: =IF(Tabelle3[[#This Row],[PO4]]>0,Tabelle3[[#This Row],[PO4]],#N/A) ->  | M26: =IF(Tabelle3[[#This Row],[NO3]]>0,Tabelle3[[#This Row],[NO3]],#N/A) ->  | O26: =IF(N26<> "",(N26/Balling!$E$15)*1000,"") ->  | Q26: =IF(P26<> "",(P26/Balling!$E$17)*1000,"") -> 
C27: =IF(Tabelle3[[#This Row],[Ca]]>0,Tabelle3[[#This Row],[Ca]],#N/A) ->  | E27: =IF(Tabelle3[[#This Row],[kH]]>0,Tabelle3[[#This Row],[kH]],#N/A) ->  | G27: =IF(Tabelle3[[#This Row],[Mg]]>0,Tabelle3[[#This Row],[Mg]],#N/A) ->  | I27: =IF(Tabelle3[[#This Row],[K]]>0,Tabelle3[[#This Row],[K]],#N/A) ->  | K27: =IF(Tabelle3[[#This Row],[PO4]]>0,Tabelle3[[#This Row],[PO4]],#N/A) ->  | M27: =IF(Tabelle3[[#This Row],[NO3]]>0,Tabelle3[[#This Row],[NO3]],#N/A) ->  | O27: =IF(N27<> "",(N27/Balling!$E$15)*1000,"") ->  | Q27: =IF(P27<> "",(P27/Balling!$E$17)*1000,"") -> 
C28: =IF(Tabelle3[[#This Row],[Ca]]>0,Tabelle3[[#This Row],[Ca]],#N/A) ->  | E28: =IF(Tabelle3[[#This Row],[kH]]>0,Tabelle3[[#This Row],[kH]],#N/A) ->  | G28: =IF(Tabelle3[[#This Row],[Mg]]>0,Tabelle3[[#This Row],[Mg]],#N/A) ->  | I28: =IF(Tabelle3[[#This Row],[K]]>0,Tabelle3[[#This Row],[K]],#N/A) ->  | K28: =IF(Tabelle3[[#This Row],[PO4]]>0,Tabelle3[[#This Row],[PO4]],#N/A) ->  | M28: =IF(Tabelle3[[#This Row],[NO3]]>0,Tabelle3[[#This Row],[NO3]],#N/A) ->  | O28: =IF(N28<> "",(N28/Balling!$E$15)*1000,"") ->  | Q28: =IF(P28<> "",(P28/Balling!$E$17)*1000,"") -> 
C29: =IF(Tabelle3[[#This Row],[Ca]]>0,Tabelle3[[#This Row],[Ca]],#N/A) ->  | E29: =IF(Tabelle3[[#This Row],[kH]]>0,Tabelle3[[#This Row],[kH]],#N/A) ->  | G29: =IF(Tabelle3[[#This Row],[Mg]]>0,Tabelle3[[#This Row],[Mg]],#N/A) ->  | I29: =IF(Tabelle3[[#This Row],[K]]>0,Tabelle3[[#This Row],[K]],#N/A) ->  | K29: =IF(Tabelle3[[#This Row],[PO4]]>0,Tabelle3[[#This Row],[PO4]],#N/A) ->  | M29: =IF(Tabelle3[[#This Row],[NO3]]>0,Tabelle3[[#This Row],[NO3]],#N/A) ->  | O29: =IF(N29<> "",(N29/Balling!$E$15)*1000,"") ->  | Q29: =IF(P29<> "",(P29/Balling!$E$17)*1000,"") -> 
C30: =IF(Tabelle3[[#This Row],[Ca]]>0,Tabelle3[[#This Row],[Ca]],#N/A) ->  | E30: =IF(Tabelle3[[#This Row],[kH]]>0,Tabelle3[[#This Row],[kH]],#N/A) ->  | G30: =IF(Tabelle3[[#This Row],[Mg]]>0,Tabelle3[[#This Row],[Mg]],#N/A) ->  | I30: =IF(Tabelle3[[#This Row],[K]]>0,Tabelle3[[#This Row],[K]],#N/A) ->  | K30: =IF(Tabelle3[[#This Row],[PO4]]>0,Tabelle3[[#This Row],[PO4]],#N/A) ->  | M30: =IF(Tabelle3[[#This Row],[NO3]]>0,Tabelle3[[#This Row],[NO3]],#N/A) ->  | O30: =IF(N30<> "",(N30/Balling!$E$15)*1000,"") ->  | Q30: =IF(P30<> "",(P30/Balling!$E$17)*1000,"") -> 
C31: =IF(Tabelle3[[#This Row],[Ca]]>0,Tabelle3[[#This Row],[Ca]],#N/A) ->  | E31: =IF(Tabelle3[[#This Row],[kH]]>0,Tabelle3[[#This Row],[kH]],#N/A) ->  | G31: =IF(Tabelle3[[#This Row],[Mg]]>0,Tabelle3[[#This Row],[Mg]],#N/A) ->  | I31: =IF(Tabelle3[[#This Row],[K]]>0,Tabelle3[[#This Row],[K]],#N/A) ->  | K31: =IF(Tabelle3[[#This Row],[PO4]]>0,Tabelle3[[#This Row],[PO4]],#N/A) ->  | M31: =IF(Tabelle3[[#This Row],[NO3]]>0,Tabelle3[[#This Row],[NO3]],#N/A) ->  | O31: =IF(N31<> "",(N31/Balling!$E$15)*1000,"") ->  | Q31: =IF(P31<> "",(P31/Balling!$E$17)*1000,"") -> 
C32: =IF(Tabelle3[[#This Row],[Ca]]>0,Tabelle3[[#This Row],[Ca]],#N/A) ->  | E32: =IF(Tabelle3[[#This Row],[kH]]>0,Tabelle3[[#This Row],[kH]],#N/A) ->  | G32: =IF(Tabelle3[[#This Row],[Mg]]>0,Tabelle3[[#This Row],[Mg]],#N/A) ->  | I32: =IF(Tabelle3[[#This Row],[K]]>0,Tabelle3[[#This Row],[K]],#N/A) ->  | K32: =IF(Tabelle3[[#This Row],[PO4]]>0,Tabelle3[[#This Row],[PO4]],#N/A) ->  | M32: =IF(Tabelle3[[#This Row],[NO3]]>0,Tabelle3[[#This Row],[NO3]],#N/A) ->  | O32: =IF(N32<> "",(N32/Balling!$E$15)*1000,"") ->  | Q32: =IF(P32<> "",(P32/Balling!$E$17)*1000,"") -> 
C33: =IF(Tabelle3[[#This Row],[Ca]]>0,Tabelle3[[#This Row],[Ca]],#N/A) ->  | E33: =IF(Tabelle3[[#This Row],[kH]]>0,Tabelle3[[#This Row],[kH]],#N/A) ->  | G33: =IF(Tabelle3[[#This Row],[Mg]]>0,Tabelle3[[#This Row],[Mg]],#N/A) ->  | I33: =IF(Tabelle3[[#This Row],[K]]>0,Tabelle3[[#This Row],[K]],#N/A) ->  | K33: =IF(Tabelle3[[#This Row],[PO4]]>0,Tabelle3[[#This Row],[PO4]],#N/A) ->  | M33: =IF(Tabelle3[[#This Row],[NO3]]>0,Tabelle3[[#This Row],[NO3]],#N/A) ->  | O33: =IF(N33<> "",(N33/Balling!$E$15)*1000,"") ->  | Q33: =IF(P33<> "",(P33/Balling!$E$17)*1000,"") -> 
C34: =IF(Tabelle3[[#This Row],[Ca]]>0,Tabelle3[[#This Row],[Ca]],#N/A) ->  | E34: =IF(Tabelle3[[#This Row],[kH]]>0,Tabelle3[[#This Row],[kH]],#N/A) ->  | G34: =IF(Tabelle3[[#This Row],[Mg]]>0,Tabelle3[[#This Row],[Mg]],#N/A) ->  | I34: =IF(Tabelle3[[#This Row],[K]]>0,Tabelle3[[#This Row],[K]],#N/A) ->  | K34: =IF(Tabelle3[[#This Row],[PO4]]>0,Tabelle3[[#This Row],[PO4]],#N/A) ->  | M34: =IF(Tabelle3[[#This Row],[NO3]]>0,Tabelle3[[#This Row],[NO3]],#N/A) ->  | O34: =IF(N34<> "",(N34/Balling!$E$15)*1000,"") ->  | Q34: =IF(P34<> "",(P34/Balling!$E$17)*1000,"") -> 
C35: =IF(Tabelle3[[#This Row],[Ca]]>0,Tabelle3[[#This Row],[Ca]],#N/A) ->  | E35: =IF(Tabelle3[[#This Row],[kH]]>0,Tabelle3[[#This Row],[kH]],#N/A) ->  | G35: =IF(Tabelle3[[#This Row],[Mg]]>0,Tabelle3[[#This Row],[Mg]],#N/A) ->  | I35: =IF(Tabelle3[[#This Row],[K]]>0,Tabelle3[[#This Row],[K]],#N/A) ->  | K35: =IF(Tabelle3[[#This Row],[PO4]]>0,Tabelle3[[#This Row],[PO4]],#N/A) ->  | M35: =IF(Tabelle3[[#This Row],[NO3]]>0,Tabelle3[[#This Row],[NO3]],#N/A) ->  | O35: =IF(N35<> "",(N35/Balling!$E$15)*1000,"") ->  | Q35: =IF(P35<> "",(P35/Balling!$E$17)*1000,"") -> 
C36: =IF(Tabelle3[[#This Row],[Ca]]>0,Tabelle3[[#This Row],[Ca]],#N/A) ->  | E36: =IF(Tabelle3[[#This Row],[kH]]>0,Tabelle3[[#This Row],[kH]],#N/A) ->  | G36: =IF(Tabelle3[[#This Row],[Mg]]>0,Tabelle3[[#This Row],[Mg]],#N/A) ->  | I36: =IF(Tabelle3[[#This Row],[K]]>0,Tabelle3[[#This Row],[K]],#N/A) ->  | K36: =IF(Tabelle3[[#This Row],[PO4]]>0,Tabelle3[[#This Row],[PO4]],#N/A) ->  | M36: =IF(Tabelle3[[#This Row],[NO3]]>0,Tabelle3[[#This Row],[NO3]],#N/A) ->  | O36: =IF(N36<> "",(N36/Balling!$E$15)*1000,"") ->  | Q36: =IF(P36<> "",(P36/Balling!$E$17)*1000,"") -> 
C37: =IF(Tabelle3[[#This Row],[Ca]]>0,Tabelle3[[#This Row],[Ca]],#N/A) ->  | E37: =IF(Tabelle3[[#This Row],[kH]]>0,Tabelle3[[#This Row],[kH]],#N/A) ->  | G37: =IF(Tabelle3[[#This Row],[Mg]]>0,Tabelle3[[#This Row],[Mg]],#N/A) ->  | I37: =IF(Tabelle3[[#This Row],[K]]>0,Tabelle3[[#This Row],[K]],#N/A) ->  | K37: =IF(Tabelle3[[#This Row],[PO4]]>0,Tabelle3[[#This Row],[PO4]],#N/A) ->  | M37: =IF(Tabelle3[[#This Row],[NO3]]>0,Tabelle3[[#This Row],[NO3]],#N/A) ->  | O37: =IF(N37<> "",(N37/Balling!$E$15)*1000,"") ->  | Q37: =IF(P37<> "",(P37/Balling!$E$17)*1000,"") -> 
C38: =IF(Tabelle3[[#This Row],[Ca]]>0,Tabelle3[[#This Row],[Ca]],#N/A) ->  | E38: =IF(Tabelle3[[#This Row],[kH]]>0,Tabelle3[[#This Row],[kH]],#N/A) ->  | G38: =IF(Tabelle3[[#This Row],[Mg]]>0,Tabelle3[[#This Row],[Mg]],#N/A) ->  | I38: =IF(Tabelle3[[#This Row],[K]]>0,Tabelle3[[#This Row],[K]],#N/A) ->  | K38: =IF(Tabelle3[[#This Row],[PO4]]>0,Tabelle3[[#This Row],[PO4]],#N/A) ->  | M38: =IF(Tabelle3[[#This Row],[NO3]]>0,Tabelle3[[#This Row],[NO3]],#N/A) ->  | O38: =IF(N38<> "",(N38/Balling!$E$15)*1000,"") ->  | Q38: =IF(P38<> "",(P38/Balling!$E$17)*1000,"") -> 
C39: =IF(Tabelle3[[#This Row],[Ca]]>0,Tabelle3[[#This Row],[Ca]],#N/A) ->  | E39: =IF(Tabelle3[[#This Row],[kH]]>0,Tabelle3[[#This Row],[kH]],#N/A) ->  | G39: =IF(Tabelle3[[#This Row],[Mg]]>0,Tabelle3[[#This Row],[Mg]],#N/A) ->  | I39: =IF(Tabelle3[[#This Row],[K]]>0,Tabelle3[[#This Row],[K]],#N/A) ->  | K39: =IF(Tabelle3[[#This Row],[PO4]]>0,Tabelle3[[#This Row],[PO4]],#N/A) ->  | M39: =IF(Tabelle3[[#This Row],[NO3]]>0,Tabelle3[[#This Row],[NO3]],#N/A) ->  | O39: =IF(N39<> "",(N39/Balling!$E$15)*1000,"") ->  | Q39: =IF(P39<> "",(P39/Balling!$E$17)*1000,"") -> 
C40: =IF(Tabelle3[[#This Row],[Ca]]>0,Tabelle3[[#This Row],[Ca]],#N/A) ->  | E40: =IF(Tabelle3[[#This Row],[kH]]>0,Tabelle3[[#This Row],[kH]],#N/A) ->  | G40: =IF(Tabelle3[[#This Row],[Mg]]>0,Tabelle3[[#This Row],[Mg]],#N/A) ->  | I40: =IF(Tabelle3[[#This Row],[K]]>0,Tabelle3[[#This Row],[K]],#N/A) ->  | K40: =IF(Tabelle3[[#This Row],[PO4]]>0,Tabelle3[[#This Row],[PO4]],#N/A) ->  | M40: =IF(Tabelle3[[#This Row],[NO3]]>0,Tabelle3[[#This Row],[NO3]],#N/A) ->  | O40: =IF(N40<> "",(N40/Balling!$E$15)*1000,"") ->  | Q40: =IF(P40<> "",(P40/Balling!$E$17)*1000,"") -> 
C41: =IF(Tabelle3[[#This Row],[Ca]]>0,Tabelle3[[#This Row],[Ca]],#N/A) ->  | E41: =IF(Tabelle3[[#This Row],[kH]]>0,Tabelle3[[#This Row],[kH]],#N/A) ->  | G41: =IF(Tabelle3[[#This Row],[Mg]]>0,Tabelle3[[#This Row],[Mg]],#N/A) ->  | I41: =IF(Tabelle3[[#This Row],[K]]>0,Tabelle3[[#This Row],[K]],#N/A) ->  | K41: =IF(Tabelle3[[#This Row],[PO4]]>0,Tabelle3[[#This Row],[PO4]],#N/A) ->  | M41: =IF(Tabelle3[[#This Row],[NO3]]>0,Tabelle3[[#This Row],[NO3]],#N/A) ->  | O41: =IF(N41<> "",(N41/Balling!$E$15)*1000,"") ->  | Q41: =IF(P41<> "",(P41/Balling!$E$17)*1000,"") -> 
C42: =IF(Tabelle3[[#This Row],[Ca]]>0,Tabelle3[[#This Row],[Ca]],#N/A) ->  | E42: =IF(Tabelle3[[#This Row],[kH]]>0,Tabelle3[[#This Row],[kH]],#N/A) ->  | G42: =IF(Tabelle3[[#This Row],[Mg]]>0,Tabelle3[[#This Row],[Mg]],#N/A) ->  | I42: =IF(Tabelle3[[#This Row],[K]]>0,Tabelle3[[#This Row],[K]],#N/A) ->  | K42: =IF(Tabelle3[[#This Row],[PO4]]>0,Tabelle3[[#This Row],[PO4]],#N/A) ->  | M42: =IF(Tabelle3[[#This Row],[NO3]]>0,Tabelle3[[#This Row],[NO3]],#N/A) ->  | O42: =IF(N42<> "",(N42/Balling!$E$15)*1000,"") ->  | Q42: =IF(P42<> "",(P42/Balling!$E$17)*1000,"") -> 
C43: =IF(Tabelle3[[#This Row],[Ca]]>0,Tabelle3[[#This Row],[Ca]],#N/A) ->  | E43: =IF(Tabelle3[[#This Row],[kH]]>0,Tabelle3[[#This Row],[kH]],#N/A) ->  | G43: =IF(Tabelle3[[#This Row],[Mg]]>0,Tabelle3[[#This Row],[Mg]],#N/A) ->  | I43: =IF(Tabelle3[[#This Row],[K]]>0,Tabelle3[[#This Row],[K]],#N/A) ->  | K43: =IF(Tabelle3[[#This Row],[PO4]]>0,Tabelle3[[#This Row],[PO4]],#N/A) ->  | M43: =IF(Tabelle3[[#This Row],[NO3]]>0,Tabelle3[[#This Row],[NO3]],#N/A) ->  | O43: =IF(N43<> "",(N43/Balling!$E$15)*1000,"") ->  | Q43: =IF(P43<> "",(P43/Balling!$E$17)*1000,"") -> 
C44: =IF(Tabelle3[[#This Row],[Ca]]>0,Tabelle3[[#This Row],[Ca]],#N/A) ->  | E44: =IF(Tabelle3[[#This Row],[kH]]>0,Tabelle3[[#This Row],[kH]],#N/A) ->  | G44: =IF(Tabelle3[[#This Row],[Mg]]>0,Tabelle3[[#This Row],[Mg]],#N/A) ->  | I44: =IF(Tabelle3[[#This Row],[K]]>0,Tabelle3[[#This Row],[K]],#N/A) ->  | K44: =IF(Tabelle3[[#This Row],[PO4]]>0,Tabelle3[[#This Row],[PO4]],#N/A) ->  | M44: =IF(Tabelle3[[#This Row],[NO3]]>0,Tabelle3[[#This Row],[NO3]],#N/A) ->  | O44: =IF(N44<> "",(N44/Balling!$E$15)*1000,"") ->  | Q44: =IF(P44<> "",(P44/Balling!$E$17)*1000,"") -> 
C45: =IF(Tabelle3[[#This Row],[Ca]]>0,Tabelle3[[#This Row],[Ca]],#N/A) ->  | E45: =IF(Tabelle3[[#This Row],[kH]]>0,Tabelle3[[#This Row],[kH]],#N/A) ->  | G45: =IF(Tabelle3[[#This Row],[Mg]]>0,Tabelle3[[#This Row],[Mg]],#N/A) ->  | I45: =IF(Tabelle3[[#This Row],[K]]>0,Tabelle3[[#This Row],[K]],#N/A) ->  | K45: =IF(Tabelle3[[#This Row],[PO4]]>0,Tabelle3[[#This Row],[PO4]],#N/A) ->  | M45: =IF(Tabelle3[[#This Row],[NO3]]>0,Tabelle3[[#This Row],[NO3]],#N/A) ->  | O45: =IF(N45<> "",(N45/Balling!$E$15)*1000,"") ->  | Q45: =IF(P45<> "",(P45/Balling!$E$17)*1000,"") -> 
C46: =IF(Tabelle3[[#This Row],[Ca]]>0,Tabelle3[[#This Row],[Ca]],#N/A) ->  | E46: =IF(Tabelle3[[#This Row],[kH]]>0,Tabelle3[[#This Row],[kH]],#N/A) ->  | G46: =IF(Tabelle3[[#This Row],[Mg]]>0,Tabelle3[[#This Row],[Mg]],#N/A) ->  | I46: =IF(Tabelle3[[#This Row],[K]]>0,Tabelle3[[#This Row],[K]],#N/A) ->  | K46: =IF(Tabelle3[[#This Row],[PO4]]>0,Tabelle3[[#This Row],[PO4]],#N/A) ->  | M46: =IF(Tabelle3[[#This Row],[NO3]]>0,Tabelle3[[#This Row],[NO3]],#N/A) ->  | O46: =IF(N46<> "",(N46/Balling!$E$15)*1000,"") ->  | Q46: =IF(P46<> "",(P46/Balling!$E$17)*1000,"") -> 
C47: =IF(Tabelle3[[#This Row],[Ca]]>0,Tabelle3[[#This Row],[Ca]],#N/A) ->  | E47: =IF(Tabelle3[[#This Row],[kH]]>0,Tabelle3[[#This Row],[kH]],#N/A) ->  | G47: =IF(Tabelle3[[#This Row],[Mg]]>0,Tabelle3[[#This Row],[Mg]],#N/A) ->  | I47: =IF(Tabelle3[[#This Row],[K]]>0,Tabelle3[[#This Row],[K]],#N/A) ->  | K47: =IF(Tabelle3[[#This Row],[PO4]]>0,Tabelle3[[#This Row],[PO4]],#N/A) ->  | M47: =IF(Tabelle3[[#This Row],[NO3]]>0,Tabelle3[[#This Row],[NO3]],#N/A) ->  | O47: =IF(N47<> "",(N47/Balling!$E$15)*1000,"") ->  | Q47: =IF(P47<> "",(P47/Balling!$E$17)*1000,"") -> 
C48: =IF(Tabelle3[[#This Row],[Ca]]>0,Tabelle3[[#This Row],[Ca]],#N/A) ->  | E48: =IF(Tabelle3[[#This Row],[kH]]>0,Tabelle3[[#This Row],[kH]],#N/A) ->  | G48: =IF(Tabelle3[[#This Row],[Mg]]>0,Tabelle3[[#This Row],[Mg]],#N/A) ->  | I48: =IF(Tabelle3[[#This Row],[K]]>0,Tabelle3[[#This Row],[K]],#N/A) ->  | K48: =IF(Tabelle3[[#This Row],[PO4]]>0,Tabelle3[[#This Row],[PO4]],#N/A) ->  | M48: =IF(Tabelle3[[#This Row],[NO3]]>0,Tabelle3[[#This Row],[NO3]],#N/A) ->  | O48: =IF(N48<> "",(N48/Balling!$E$15)*1000,"") ->  | Q48: =IF(P48<> "",(P48/Balling!$E$17)*1000,"") -> 
C49: =IF(Tabelle3[[#This Row],[Ca]]>0,Tabelle3[[#This Row],[Ca]],#N/A) ->  | E49: =IF(Tabelle3[[#This Row],[kH]]>0,Tabelle3[[#This Row],[kH]],#N/A) ->  | G49: =IF(Tabelle3[[#This Row],[Mg]]>0,Tabelle3[[#This Row],[Mg]],#N/A) ->  | I49: =IF(Tabelle3[[#This Row],[K]]>0,Tabelle3[[#This Row],[K]],#N/A) ->  | K49: =IF(Tabelle3[[#This Row],[PO4]]>0,Tabelle3[[#This Row],[PO4]],#N/A) ->  | M49: =IF(Tabelle3[[#This Row],[NO3]]>0,Tabelle3[[#This Row],[NO3]],#N/A) ->  | O49: =IF(N49<> "",(N49/Balling!$E$15)*1000,"") ->  | Q49: =IF(P49<> "",(P49/Balling!$E$17)*1000,"") -> 
C50: =IF(Tabelle3[[#This Row],[Ca]]>0,Tabelle3[[#This Row],[Ca]],#N/A) ->  | E50: =IF(Tabelle3[[#This Row],[kH]]>0,Tabelle3[[#This Row],[kH]],#N/A) ->  | G50: =IF(Tabelle3[[#This Row],[Mg]]>0,Tabelle3[[#This Row],[Mg]],#N/A) ->  | I50: =IF(Tabelle3[[#This Row],[K]]>0,Tabelle3[[#This Row],[K]],#N/A) ->  | K50: =IF(Tabelle3[[#This Row],[PO4]]>0,Tabelle3[[#This Row],[PO4]],#N/A) ->  | M50: =IF(Tabelle3[[#This Row],[NO3]]>0,Tabelle3[[#This Row],[NO3]],#N/A) ->  | O50: =IF(N50<> "",(N50/Balling!$E$15)*1000,"") ->  | Q50: =IF(P50<> "",(P50/Balling!$E$17)*1000,"") -> 
C51: =IF(Tabelle3[[#This Row],[Ca]]>0,Tabelle3[[#This Row],[Ca]],#N/A) ->  | E51: =IF(Tabelle3[[#This Row],[kH]]>0,Tabelle3[[#This Row],[kH]],#N/A) ->  | G51: =IF(Tabelle3[[#This Row],[Mg]]>0,Tabelle3[[#This Row],[Mg]],#N/A) ->  | I51: =IF(Tabelle3[[#This Row],[K]]>0,Tabelle3[[#This Row],[K]],#N/A) ->  | K51: =IF(Tabelle3[[#This Row],[PO4]]>0,Tabelle3[[#This Row],[PO4]],#N/A) ->  | M51: =IF(Tabelle3[[#This Row],[NO3]]>0,Tabelle3[[#This Row],[NO3]],#N/A) ->  | O51: =IF(N51<> "",(N51/Balling!$E$15)*1000,"") ->  | Q51: =IF(P51<> "",(P51/Balling!$E$17)*1000,"") -> 
C52: =IF(Tabelle3[[#This Row],[Ca]]>0,Tabelle3[[#This Row],[Ca]],#N/A) ->  | E52: =IF(Tabelle3[[#This Row],[kH]]>0,Tabelle3[[#This Row],[kH]],#N/A) ->  | G52: =IF(Tabelle3[[#This Row],[Mg]]>0,Tabelle3[[#This Row],[Mg]],#N/A) ->  | I52: =IF(Tabelle3[[#This Row],[K]]>0,Tabelle3[[#This Row],[K]],#N/A) ->  | K52: =IF(Tabelle3[[#This Row],[PO4]]>0,Tabelle3[[#This Row],[PO4]],#N/A) ->  | M52: =IF(Tabelle3[[#This Row],[NO3]]>0,Tabelle3[[#This Row],[NO3]],#N/A) ->  | O52: =IF(N52<> "",(N52/Balling!$E$15)*1000,"") ->  | Q52: =IF(P52<> "",(P52/Balling!$E$17)*1000,"") -> 
C53: =IF(Tabelle3[[#This Row],[Ca]]>0,Tabelle3[[#This Row],[Ca]],#N/A) ->  | E53: =IF(Tabelle3[[#This Row],[kH]]>0,Tabelle3[[#This Row],[kH]],#N/A) ->  | G53: =IF(Tabelle3[[#This Row],[Mg]]>0,Tabelle3[[#This Row],[Mg]],#N/A) ->  | I53: =IF(Tabelle3[[#This Row],[K]]>0,Tabelle3[[#This Row],[K]],#N/A) ->  | K53: =IF(Tabelle3[[#This Row],[PO4]]>0,Tabelle3[[#This Row],[PO4]],#N/A) ->  | M53: =IF(Tabelle3[[#This Row],[NO3]]>0,Tabelle3[[#This Row],[NO3]],#N/A) ->  | O53: =IF(N53<> "",(N53/Balling!$E$15)*1000,"") ->  | Q53: =IF(P53<> "",(P53/Balling!$E$17)*1000,"") -> 
C54: =IF(Tabelle3[[#This Row],[Ca]]>0,Tabelle3[[#This Row],[Ca]],#N/A) ->  | E54: =IF(Tabelle3[[#This Row],[kH]]>0,Tabelle3[[#This Row],[kH]],#N/A) ->  | G54: =IF(Tabelle3[[#This Row],[Mg]]>0,Tabelle3[[#This Row],[Mg]],#N/A) ->  | I54: =IF(Tabelle3[[#This Row],[K]]>0,Tabelle3[[#This Row],[K]],#N/A) ->  | K54: =IF(Tabelle3[[#This Row],[PO4]]>0,Tabelle3[[#This Row],[PO4]],#N/A) ->  | M54: =IF(Tabelle3[[#This Row],[NO3]]>0,Tabelle3[[#This Row],[NO3]],#N/A) ->  | O54: =IF(N54<> "",(N54/Balling!$E$15)*1000,"") ->  | Q54: =IF(P54<> "",(P54/Balling!$E$17)*1000,"") -> 
C55: =IF(Tabelle3[[#This Row],[Ca]]>0,Tabelle3[[#This Row],[Ca]],#N/A) ->  | E55: =IF(Tabelle3[[#This Row],[kH]]>0,Tabelle3[[#This Row],[kH]],#N/A) ->  | G55: =IF(Tabelle3[[#This Row],[Mg]]>0,Tabelle3[[#This Row],[Mg]],#N/A) ->  | I55: =IF(Tabelle3[[#This Row],[K]]>0,Tabelle3[[#This Row],[K]],#N/A) ->  | K55: =IF(Tabelle3[[#This Row],[PO4]]>0,Tabelle3[[#This Row],[PO4]],#N/A) ->  | M55: =IF(Tabelle3[[#This Row],[NO3]]>0,Tabelle3[[#This Row],[NO3]],#N/A) ->  | O55: =IF(N55<> "",(N55/Balling!$E$15)*1000,"") ->  | Q55: =IF(P55<> "",(P55/Balling!$E$17)*1000,"") -> 
C56: =IF(Tabelle3[[#This Row],[Ca]]>0,Tabelle3[[#This Row],[Ca]],#N/A) ->  | E56: =IF(Tabelle3[[#This Row],[kH]]>0,Tabelle3[[#This Row],[kH]],#N/A) ->  | G56: =IF(Tabelle3[[#This Row],[Mg]]>0,Tabelle3[[#This Row],[Mg]],#N/A) ->  | I56: =IF(Tabelle3[[#This Row],[K]]>0,Tabelle3[[#This Row],[K]],#N/A) ->  | K56: =IF(Tabelle3[[#This Row],[PO4]]>0,Tabelle3[[#This Row],[PO4]],#N/A) ->  | M56: =IF(Tabelle3[[#This Row],[NO3]]>0,Tabelle3[[#This Row],[NO3]],#N/A) ->  | O56: =IF(N56<> "",(N56/Balling!$E$15)*1000,"") ->  | Q56: =IF(P56<> "",(P56/Balling!$E$17)*1000,"") -> 
C57: =IF(Tabelle3[[#This Row],[Ca]]>0,Tabelle3[[#This Row],[Ca]],#N/A) ->  | E57: =IF(Tabelle3[[#This Row],[kH]]>0,Tabelle3[[#This Row],[kH]],#N/A) ->  | G57: =IF(Tabelle3[[#This Row],[Mg]]>0,Tabelle3[[#This Row],[Mg]],#N/A) ->  | I57: =IF(Tabelle3[[#This Row],[K]]>0,Tabelle3[[#This Row],[K]],#N/A) ->  | K57: =IF(Tabelle3[[#This Row],[PO4]]>0,Tabelle3[[#This Row],[PO4]],#N/A) ->  | M57: =IF(Tabelle3[[#This Row],[NO3]]>0,Tabelle3[[#This Row],[NO3]],#N/A) ->  | O57: =IF(N57<> "",(N57/Balling!$E$15)*1000,"") ->  | Q57: =IF(P57<> "",(P57/Balling!$E$17)*1000,"") -> 
C58: =IF(Tabelle3[[#This Row],[Ca]]>0,Tabelle3[[#This Row],[Ca]],#N/A) ->  | E58: =IF(Tabelle3[[#This Row],[kH]]>0,Tabelle3[[#This Row],[kH]],#N/A) ->  | G58: =IF(Tabelle3[[#This Row],[Mg]]>0,Tabelle3[[#This Row],[Mg]],#N/A) ->  | I58: =IF(Tabelle3[[#This Row],[K]]>0,Tabelle3[[#This Row],[K]],#N/A) ->  | K58: =IF(Tabelle3[[#This Row],[PO4]]>0,Tabelle3[[#This Row],[PO4]],#N/A) ->  | M58: =IF(Tabelle3[[#This Row],[NO3]]>0,Tabelle3[[#This Row],[NO3]],#N/A) ->  | O58: =IF(N58<> "",(N58/Balling!$E$15)*1000,"") ->  | Q58: =IF(P58<> "",(P58/Balling!$E$17)*1000,"") -> 

Sheet Diagramm

Sheet KF-Plus-Produkte
G1: Korallenfarm.at
G2: Ihr Spezialist für Nachzuchtkorallen aus Österreich
G3: 1120 Wien, Stranitzkygasse 5
G4: 0664/3972620
G5: info@korallenfarm.at
G6: www.korallenfarm.at
A7: Dosierung KF-Plus - Produkte
A8: Kanister: | B8: Ballingflüssigkeiten | D8: 5 Liter | E8: 1 Liter | H8: Faktor
A9: j | B9: Calziumchloriddihydrat | D9: 1835 | E9: =D9/5 -> 367 | H9: 0.00367
A10: k | B10: natriumchloridfreie Salzmischung | D10: 125 | E10: =D10/5 -> 25 | H10: 30.2
A11: l | B11: Natriumhydrogencarbonat | D11: 420 | E11: =D11/5 -> 84
B12: Magnesiumchloridhexahydrat | D12: =E12*5 -> 4180 | E12: 836 | H12: 8.36
B13: Kalium | E13: 191 | H13: 0.1
B14: Strontium | E14: 30.47 | H14: 0.01
C16: Aquarienvolumen | D16: 500
C18: KF-Plus Calzium | D18: KF-Plus Karbonat | E18: KF-Plus Magnesium | F18: KF-Plus Kalium | G18: KF-Plus Strontium
A19: Sollwert | C19: 420 | D19: 8 | E19: 1300 | F19: 390 | G19: 8
A20: IST-Wert | C20: 400 | D20: 7 | E20: 1290 | F20: 350 | G20: 7
A21: Zugabe in g: | C21: =$D$16*(C19-C20)*H9 -> 36.7 | D21: =$D$16*(D19-D20)*H10/1000 -> 15.1 | E21: =$D$16*(E19-E20)*H12/1000 -> 41.8 | F21: =$D$16*(F19-F20)*#REF!/1000 ->  | G21: =$D$16*(G19-G20)*I12/1000 -> 0
A22: Zugabe der Lösung in ml | C22: =(C21/E9)*1000 -> 100 | D22: =(D21/E11)*1000 -> 179.7619048 | E22: =$D$16*(E19-E20)/100 -> 50 | F22: =(F19-F20)*$D$16/$H$13/1000 -> 200 | G22: =(G19-G20)*$D$16/$H$14/1000 -> 50
A23: Zugabe verteilen auf | C23: =C21/20 -> 1.835 | D23: =(D19-D20)/2 -> 0.5 | E23: =(E19-E20)/50 -> 0.2 | F23: =(F19-F20)/5 -> 8 | G23: =(G19-G20)/1 -> 1

Sheet Balling
M1: Korallenfarm.at
M2: Ihr Spezialist für Nachzuchtkorallen aus Österreich
M3: 1120 Wien, Stranitzkygasse 5
M4: 0664/3972620
M5: info@korallenfarm.at
M6: www.korallenfarm.at
A9: Definition der Ballingflüssigkeiten | I9: Berechnung der Ballingflüssigkeiten
I11: Aquarienvolumen: | K11: 500
K13: Calzium | L13: kH | M13: Magnesium
A14: Kanister: | B14: Ballingflüssigkeiten | D14: 5 Liter | E14: 1 Liter | F14: Standard für 5 Liter Balling | G14: Faktor | I14: Sollwert | K14: 420 | L14: 7.5 | M14: 1300
A15: j | B15: Calziumchloriddihydrat | D15: 368 | E15: =D15/5 -> 73.6 | F15: 368 | G15: 0.00367 | I15: IST-Wert | K15: 400 | L15: 6 | M15: 1150
A16: k | B16: natriumchloridfreie Salzmischung | D16: 125 | E16: =D16/5 -> 25 | F16: 125 | I16: Zugabe in g: | K16: =$K$11*(K14-K15)*G15 -> 36.7 | L16: =$K$11*(L14-L15)*G17/1000 -> 22.65 | M16: =$K$11*(M14-M15)*G18/1000 -> 627
A17: l | B17: Natriumhydrogencarbonat | D17: 420 | E17: =D17/5 -> 84 | F17: 420 | G17: 30.2 | I17: Zugabe der Lösung in ml | K17: =(K16/E15)*1000 -> 498.6413043 | L17: =(L16/E17)*1000 -> 269.6428571 | M17: =$K$11*(M14-M15)/100 -> 750
B18: Magnesiumchloridhexahydrat | D18: =E18*5 -> 4180 | E18: 836 | F18: 4180 | G18: 8.36 | I18: Zugabe verteilen auf | K18: =K16/20 -> 1.835 | L18: =(L14-L15)/2 -> 0.75 | M18: =(M14-M15)/50 -> 3

Sheet Erklärung
K1: Korallenfarm.at
K2: Ihr Spezialist für Nachzuchtkorallen aus Österreich
K3: 1120 Wien, Stranitzkygasse 5
K4: 0664/3972620
K5: info@korallenfarm.at
K6: www.korallenfarm.at
A8: Haftungsausschluß
A9: Klingt seltsam - muss aber sein:
A10: Die Korallenfarm übernimmt keine Haftung für ev. Schäden, die auf Fehler oder falsche Dosierungen, die sich aus den Tabellen errechnen ergeben!!!
A11: Und das hat einen einfachen Grund:
A12: Die Berechnungen beruhen auf dem Buch "Meerwasserchemie" von Armin Glaser und funktionieren 100%ig. Wir in der Korallenfarm verwenden sie schon seit Jahren mit Erfolg
A13: Was aber niemand von uns genau weiß ist das tatsächliche Wasservolumen (abzüglich der Lebendsteine, Sand, Technik!!!) seines Aquariums.
A14: Daher bitte anfangs ca. 10% von Eurem Beckenvolumen abziehen und so eingeben (also z.B. 450 bei einem 500-Liter-Becken)
A15: Danach die Zugaben nachmessen!!!! Erreichst Du nach der Zugabe zu geringe Werte, kannst Du dann den Wert beim Beckenvolumen langsam erhöhen, bis
A16: die errechneten Werte mit den tatsächlichen übereinstimmen.
A18: Messwerte:
A19: Zuerst musst Du in den grünen Feldern Dein Beckenvolumen und Deine "Standardwerte" eintragen.
A20: Dann kannst Du Deine regelmäßigen Messwerte eintragen. Es wird Dir auch gleich das ev. fehlende Calzium und die Karbonathärte berechnet.
A21: Wichtig: Für die Berechnung wird das herangezogen, was Du in der Tabelle "Balling" bei der Definition der Ballingflüssigkeiten eingetragen hast, herangezogen.
A23: Diagramm:
A24: Hier wird Dir für jeden Wert, den Du bei "Messwerte" einträgst, ein Diagramm angezeigt.
A26: KF-Plus-Produkte
A27: Zuerst musst Du in den grünen Feldern Dein Beckenvolumen und Deine gemessenen Werte eintragen.
A28: Die Tabelle errechnet automatisch die Zugabe der entsprechenden KF-Plus-Produkte, um auf den "SOLL-Wert" zu kommen
A30: Balling:
A31: Bei der "Definition der Ballingflüssigkeiten" tragst Du in den grünen Feldern ein, wie Du Deine Ballingflüssigkeiten ansetzt.
A32: In der Tabelle sind die "Standard-Werte", die von H.W. Balling so definiert wurden, schon eingetragen.
A33: Die vorgeschlagenen Werte zur Korrektur in der Tabelle Messwerte bezieht sich ebenfalls auf diese Definition
A34: Wichtig: | B34: Wenn Du z.B. beim Calzium 368g auf 5 Liter ansetzt dann heißt dass NICHT dass Du einfach 368g Calziumchloriddihydrat
B35: in 5 Liter Wasser einfüllst. Du würdest dann mehr als 5 Liter Ballingflüssigkeit haben.
B36: Richtig ist es, die 368g in 4 Liter Osmosewasser einzurühren und nach Auflösung auf 5 Liter aufzufüllen!!!!
B37: Genauso ist bei allen anderen Ballingflüssigkeiten zu verfahren.
A39: Berechnung der Ballingflüssigkeiten:
A40: Du kannst in den grünen Feldern Dein Beckenvolumen und die gemessenen Werte eintragen
A41: In den blauen Feldern kannst Du die Werte eintragen, die Du erreichen willst
A42: In den roten Feldern wird Dir nun automatisch ausgerechnet, wieviel g vom Salz bzw. wieviel ml von der Ballinglösung Du benötigst,
A43: um auf die gewünschen Werte zu kommen und auf wieviele Tage man die Erhöhung verteilen sollte.
